bitfinex/quotes_BTCUSD_20250408
["timestamp","ask_amount","ask_price","bid_price","bid_amount"]
[1744090154366,4.214e-05,79649.0,79648.0,1.00358545]
[1744090154583,4.214e-05,79649.0,79648.0,1.00558545]
[1744090154957,4.214e-05,79649.0,79648.0,1.01458545]
[1744090155190,4.214e-05,79649.0,79648.0,1.00258545]
[1744090155621,4.214e-05,79649.0,79648.0,1.01158545]
[1744090156420,4.214e-05,79649.0,79648.0,1.02058545]
[1744090157053,0.26015237,79674.0,79664.0,0.34]
[1744090157268,4.213e-05,79669.0,79667.0,0.263596]
[1744090157472,4.213e-05,79669.0,79668.0,0.1293887]
[1744090158623,4.213e-05,79669.0,79668.0,0.1333887]
[1744090159813,4.213e-05,79669.0,79668.0,0.1373887]
[1744090163726,4.213e-05,79669.0,79668.0,0.1499407]
[1744090163974,4.213e-05,79669.0,79668.0,0.1373887]
[1744090168043,4.213e-05,79669.0,79668.0,0.1499407]
[1744090168889,4.213e-05,79669.0,79668.0,0.15245094]
[1744090169987,0.26363113,79669.0,79668.0,0.008]
[1744090170454,4.213e-05,79669.0,79668.0,0.008]
[1744090170883,0.01259313,79669.0,79668.0,0.008]
[1744090174804,0.01259313,79669.0,79668.0,0.004]
[1744090175008,0.012552,79664.0,79657.0,0.603626]
[1744090175215,0.012552,79664.0,79659.0,0.34]
[1744090175433,0.251055,79664.0,79660.0,0.1293887]
[1744090175664,0.251062,79662.0,79660.0,0.1293887]
[1744090175852,0.263609,79663.0,79660.0,0.1293887]
[1744090176527,0.263616,79662.0,79660.0,0.1293887]
[1744090177457,0.251057,79663.0,79660.0,0.1293887]
[1744090177840,0.251057,79663.0,79660.0,0.1373887]
[1744090178046,0.012553,79661.0,79660.0,0.1453887]
[1744090178282,0.012553,79661.0,79660.0,0.1373887]
[1744090179132,0.012553,79661.0,79660.0,0.008]
[1744090179975,0.26362,79660.0,79653.0,0.34]
[1744090180180,0.26362,79660.0,79654.0,0.1293887]
[1744090180382,0.251073,79658.0,79654.0,0.1293887]
[1744090180589,0.263626,79658.0,79654.0,0.1293887]
[1744090180810,0.012554,79655.0,79654.0,0.1293887]
[1744090181650,0.012554,79655.0,79653.0,0.018]
[1744090181651,0.263639,79654.0,79653.0,0.009]
[1744090181862,0.251101,79649.0,79648.0,9e-07]
[1744090182102,0.251096,79651.0,79648.0,0.13893204]
[1744090182313,0.251096,79651.0,79649.0,0.1293887]
[1744090182724,0.26348315,79651.0,79649.0,0.1293887]
[1744090182926,0.01238715,79651.0,79649.0,0.1293887]
[1744090183377,0.012554,79653.0,79649.0,0.1293887]
[1744090184222,0.012554,79653.0,79649.0,0.1333887]
[1744090184443,0.263652,79650.0,79649.0,0.1333887]
[1744090184716,0.263652,79650.0,79649.0,0.1323887]
[1744090184902,0.012554,79650.0,79649.0,0.1323887]
[1744090185078,0.251094,79652.0,79649.0,0.1363887]
[1744090185432,0.263648,79652.0,79649.0,0.1333887]
[1744090185650,0.251098,79650.0,79649.0,0.1383887]
[1744090185867,0.263651,79651.0,79649.0,0.1383887]
[1744090186339,0.263651,79651.0,79649.0,0.1343887]
[1744090186546,0.263651,79651.0,79649.0,0.1393887]
[1744090186975,0.263651,79651.0,79649.0,0.1343887]
[1744090187193,0.012554,79650.0,79649.0,0.1293887]
[1744090187412,0.012554,79650.0,79649.0,0.1373887]
[1744090187620,0.012554,79650.0,79649.0,0.1333887]
[1744090188243,0.012554,79650.0,79649.0,0.1293887]
[1744090188668,0.012554,79650.0,79649.0,0.004]
[1744090190077,0.012554,79650.0,79649.0,0.005]
[1744090190529,0.263656,79649.0,79648.0,9e-07]
[1744090192162,0.263656,79649.0,79648.0,0.0020009]
[1744090192825,0.01289711,79652.0,79648.0,0.0145559]
[1744090193033,0.01289711,79652.0,79648.0,0.2656579]
[1744090193246,0.263645,79653.0,79649.0,0.1293887]
[1744090194700,0.263632,79656.0,79649.0,0.1419437]
[1744090194811,0.263632,79656.0,79650.0,0.012554]
[1744090195024,0.263632,79656.0,79651.0,0.1293887]
[1744090195025,0.02496573,79656.0,79651.0,0.1293887]
[1744090195234,0.01241273,79656.0,79652.0,0.251092]
[1744090195431,0.263626,79659.0,79653.0,0.1419427]
[1744090195676,0.263629,79658.0,79653.0,0.3930287]
[1744090196079,0.263632,79657.0,79653.0,0.1293887]
[1744090196287,0.263635,79656.0,79653.0,0.1293887]
[1744090196488,0.012553,79656.0,79653.0,0.1293887]
[1744090196811,0.012553,79657.0,79653.0,0.1293887]
[1744090196988,0.251082,79656.0,79653.0,0.1293887]
[1744090197193,0.26383901,79656.0,79653.0,0.1293887]
[1744090197462,0.01275701,79656.0,79653.0,0.1303887]
[1744090197615,0.02531001,79656.0,79653.0,0.1303887]
[1744090197795,0.012553,79656.0,79653.0,0.1313887]
[1744090198577,0.012553,79656.0,79653.0,0.1303887]
[1744090199468,0.012553,79656.0,79653.0,0.1313887]
[1744090199662,0.263635,79656.0,79653.0,0.1313887]
[1744090200493,0.012553,79656.0,79653.0,0.1313887]
[1744090201334,0.263635,79656.0,79653.0,0.1313887]
[1744090201546,0.012553,79657.0,79653.0,0.1313887]
[1744090201755,0.012553,79656.0,79653.0,0.1313887]
[1744090202159,0.251085,79654.0,79653.0,0.1313887]
[1744090202399,0.251085,79654.0,79653.0,0.1303887]
[1744090202697,0.012554,79655.0,79653.0,0.1313887]
[1744090202979,0.263635,79656.0,79653.0,0.1313887]
[1744090203236,0.159672,79665.0,79658.0,0.263626]
[1744090203446,0.26350517,79664.0,79659.0,0.1293887]
[1744090203650,0.012552,79663.0,79659.0,0.1293887]
[1744090203866,0.01291288,79664.0,79660.0,0.012553]
[1744090204071,0.01291288,79664.0,79661.0,0.263614]
[1744090204278,0.14712,79665.0,79661.0,0.263614]
[1744090204888,0.003,79664.0,79661.0,0.263614]
[1744090205128,0.257054,79664.0,79660.0,0.1293887]
[1744090205365,0.257055,79664.0,79660.0,0.1293887]
[1744090205576,0.003,79664.0,79660.0,0.3804547]
[1744090205785,0.003,79664.0,79661.0,0.012553]
[1744090205963,0.15012,79665.0,79661.0,0.012553]
[1744090206381,0.003,79664.0,79661.0,0.012553]
[1744090206808,0.002,79664.0,79661.0,0.012553]
[1744090207890,0.002,79664.0,79662.0,0.25106]
[1744090208113,0.01249777,79665.0,79661.0,0.012553]
[1744090208327,0.01249777,79665.0,79661.0,0.013553]
[1744090208527,0.012552,79667.0,79661.0,0.013553]
[1744090208928,0.012552,79668.0,79662.0,0.3930017]
[1744090209137,0.000336,79681.0,79668.0,0.012552]
[1744090209479,0.251004,79680.0,79668.0,0.1903407]
[1744090209688,0.263554,79680.0,79668.0,0.1903407]
[1744090209882,0.01255,79680.0,79668.0,0.1903407]
[1744090209999,0.263554,79680.0,79668.0,0.1903407]
[1744090210208,0.01255,79679.0,79668.0,0.1903407]
[1744090210619,0.00104213,79669.0,79668.0,0.1903407]
[1744090211384,0.00104213,79669.0,79668.0,0.54739174]
[1744090211616,0.00104213,79669.0,79668.0,0.59068155]
[1744090212010,0.00104213,79669.0,79668.0,1.15212155]
[1744090212243,1.3e-07,79669.0,79668.0,1.15212155]
[1744090212426,0.000336,79681.0,79680.0,0.71339485]
[1744090212630,0.000336,79681.0,79680.0,1.25718355]
[1744090213048,0.000336,79681.0,79680.0,1.26665625]
[1744090213703,0.000336,79696.0,79695.0,0.698803]
[1744090213910,0.000336,79700.0,79699.0,0.61803185]
[1744090214130,0.000336,79700.0,79699.0,1.20762055]
[1744090214334,0.00046239,79700.0,79699.0,1.20762055]
[1744090214992,0.00035964,79700.0,79699.0,1.20762055]
[1744090215821,8.4e-07,79701.0,79700.0,0.41658785]
[1744090216035,8.4e-07,79701.0,79700.0,0.54597655]
[1744090216279,8.4e-07,79701.0,79700.0,0.55554161]
[1744090217145,8.4e-07,79701.0,79700.0,0.47895376]
[1744090217593,8.4e-07,79701.0,79700.0,0.50050076]
[1744090218220,8.4e-07,79701.0,79700.0,0.50950076]
[1744090218643,8.4e-07,79701.0,79700.0,0.50050076]
[1744090219476,8.4e-07,79701.0,79700.0,0.50950076]
[1744090221199,0.01254684,79701.0,79700.0,0.1473887]
[1744090221443,0.01254684,79701.0,79700.0,0.018]
[1744090221671,0.0253465,79701.0,79700.0,0.018]
[1744090221889,0.01254684,79701.0,79700.0,0.018]
[1744090222112,0.01254684,79701.0,79700.0,0.009]
[1744090222340,0.01254684,79701.0,79689.0,0.263522]
[1744090222341,0.012547,79695.0,79689.0,0.263522]
[1744090222577,0.012548,79691.0,79685.0,0.012549]
[1744090222848,0.250972,79690.0,79686.0,0.1293887]
[1744090223716,0.012548,79690.0,79686.0,0.1293887]
[1744090224907,0.26353,79687.0,79686.0,0.1293887]
[1744090225149,0.26353,79687.0,79680.0,3.9e-07]
[1744090225150,0.60355,79681.0,79680.0,3.9e-07]
[1744090225430,0.263656,79649.0,79642.0,0.0001679]
[1744090225891,0.263656,79649.0,79648.0,0.00042136]
[1744090226795,0.263656,79649.0,79648.0,0.00142136]
[1744090227018,0.263656,79649.0,79648.0,0.00042136]
[1744090227229,0.012553,79658.0,79651.0,0.263649]
[1744090227451,0.012554,79650.0,79648.0,0.00042136]
[1744090227654,0.012555,79649.0,79648.0,0.00042136]
[1744090228091,0.012554,79650.0,79648.0,0.00042136]
[1744090228299,0.263643,79653.0,79648.0,0.00042136]
[1744090228509,0.26365,79651.0,79648.0,0.00042136]
[1744090228723,0.263643,79653.0,79648.0,0.00042136]
[1744090228950,0.01287599,79654.0,79649.0,0.251101]
[1744090229179,0.012553,79656.0,79651.0,0.012554]
[1744090229402,0.14696,79657.0,79654.0,0.012554]
[1744090229611,0.001,79653.0,79650.0,0.012554]
[1744090230276,0.001,79653.0,79651.0,0.263649]
[1744090230488,0.001,79653.0,79650.0,0.012554]
[1744090230663,0.001,79653.0,79648.0,0.01297636]
[1744090230902,0.001,79653.0,79649.0,0.3804887]
[1744090231056,0.012554,79654.0,79649.0,0.3930437]
[1744090231671,0.012553,79656.0,79651.0,0.251095]
[1744090231916,0.012553,79656.0,79650.0,0.012554]
[1744090232800,0.012553,79656.0,79651.0,0.263647]
[1744090233029,0.001,79654.0,79651.0,0.012554]
[1744090233254,0.013553,79656.0,79651.0,0.012554]
[1744090233462,0.013553,79656.0,79649.0,0.3930437]
[1744090233463,0.263636,79655.0,79649.0,0.3930437]
[1744090233900,0.012554,79650.0,79649.0,0.1293887]
[1744090234332,0.251097,79651.0,79649.0,0.1293887]
[1744090235360,0.012554,79653.0,79649.0,0.1293887]
[1744090235590,0.263636,79655.0,79649.0,0.1293887]
[1744090235794,0.251048,79666.0,79649.0,0.1293887]
[1744090235795,0.263606,79664.0,79657.0,0.263629]
[1744090235999,0.001,79655.0,79654.0,0.263637]
[1744090236206,0.001,79655.0,79654.0,0.3930257]
[1744090236421,0.263652,79650.0,79648.0,0.00042136]
[1744090236639,0.012555,79649.0,79648.0,0.00042136]
[1744090236871,0.012555,79649.0,79648.0,0.12981006]
[1744090237969,0.263652,79650.0,79648.0,0.12981006]
[1744090238206,0.263652,79650.0,79649.0,0.1293887]
[1744090239395,0.012555,79649.0,79648.0,0.00242136]
[1744090240057,0.012555,79649.0,79648.0,0.00042136]
[1744090240916,0.016555,79649.0,79648.0,0.00042136]
[1744090241140,0.22030954,79651.0,79648.0,0.00042136]
[1744090241347,0.012555,79649.0,79648.0,0.00042136]
[1744090242871,0.012555,79649.0,79648.0,0.00142136]
[1744090244209,0.012555,79649.0,79648.0,0.00042136]
[1744090244336,0.017555,79649.0,79648.0,0.00042136]
[1744090247188,0.005,79649.0,79648.0,0.26408036]
[1744090247615,0.005,79649.0,79648.0,0.76242178]
[1744090247828,0.005,79649.0,79648.0,0.82306263]
[1744090248041,0.005,79649.0,79648.0,1.23746263]
[1744090248243,0.14696,79677.0,79672.0,0.012551]
[1744090248455,0.251026,79673.0,79666.0,0.012552]
[1744090248656,0.15951,79677.0,79666.0,0.1293887]
[1744090248657,0.251039,79669.0,79666.0,0.1293887]
[1744090248772,0.012552,79667.0,79666.0,0.1293887]
[1744090249199,0.01255,79676.0,79666.0,0.42098937]
[1744090249413,0.263569,79675.0,79666.0,0.42098937]
[1744090249613,0.012551,79674.0,79667.0,0.012552]
[1744090249815,0.15934553,79677.0,79668.0,0.263593]
[1744090250173,0.18114813,79682.0,79674.0,0.012551]
[1744090250174,0.263553,79681.0,79674.0,0.012551]
[1744090250371,0.263561,79678.0,79672.0,0.251028]
[1744090250707,0.263546,79682.0,79672.0,0.251028]
[1744090250923,0.263546,79682.0,79675.0,0.263568]
[1744090251124,0.001,79674.0,79670.0,0.012551]
[1744090251335,0.001,79674.0,79671.0,0.1293887]
[1744090251531,0.001,79674.0,79672.0,0.26358]
[1744090251746,0.001,79674.0,79673.0,0.4819397]
[1744090252391,0.012548,79688.0,79673.0,0.4819397]
[1744090252392,0.002,79682.0,79681.0,0.01255]
[1744090252605,0.002,79682.0,79681.0,0.1419387]
[1744090253305,0.002,79682.0,79681.0,0.3929367]
[1744090253537,0.002,79682.0,79681.0,0.1419387]
[1744090253754,0.263531,79687.0,79681.0,0.1419387]
[1744090253755,0.012549,79687.0,79681.0,0.3929377]
[1744090253987,0.012549,79687.0,79681.0,0.3949377]
[1744090254653,0.263539,79685.0,79681.0,0.002]
[1744090254890,0.012549,79682.0,79681.0,0.002]
[1744090255999,0.263592,79669.0,79663.0,0.4144]
[1744090256235,0.263593,79668.0,79664.0,0.1293887]
[1744090256450,0.012552,79667.0,79664.0,0.1293887]
[1744090257513,0.263606,79664.0,79663.0,0.4144]
[1744090258367,0.263656,79649.0,79648.0,9e-07]
[1744090258586,0.263656,79649.0,79648.0,0.00042136]
[1744090259253,0.3427505,79649.0,79648.0,0.00042136]
[1744090259461,0.263656,79649.0,79648.0,0.00042136]
[1744090259887,0.263656,79649.0,79648.0,0.00942136]
[1744090260533,0.001,79649.0,79648.0,0.28208036]
[1744090260827,0.001,79649.0,79648.0,0.41146906]
[1744090261034,0.263637,79655.0,79649.0,0.012555]
[1744090261346,0.263637,79655.0,79650.0,0.1293887]
[1744090261998,0.012553,79658.0,79650.0,0.1293887]
[1744090261999,0.251078,79657.0,79650.0,0.3804867]
[1744090262231,0.14696,79666.0,79658.0,0.012553]
[1744090262462,0.14696,79675.0,79674.0,0.263573]
[1744090262673,0.19372204,79690.0,79683.0,0.012549]
[1744090262878,0.263536,79686.0,79679.0,0.01255]
[1744090263097,0.01257491,79690.0,79685.0,0.012549]
[1744090263337,0.250975,79689.0,79681.0,0.263547]
[1744090263562,0.012548,79688.0,79685.0,0.01670377]
[1744090264028,0.26353,79687.0,79685.0,0.01670377]
[1744090264493,0.250966,79693.0,79681.0,0.1419387]
[1744090264494,0.263825,79700.0,79693.0,0.012548]
[1744090264708,0.00046252,79696.0,79692.0,0.250964]
[1744090264922,0.00046252,79696.0,79687.0,0.012549]
[1744090264923,0.012547,79695.0,79689.0,0.263523]
[1744090265154,0.012548,79688.0,79682.0,0.3897]
[1744090265368,0.012548,79688.0,79683.0,0.4819377]
[1744090265585,0.001,79687.0,79685.0,0.263535]
[1744090265802,0.001,79687.0,79682.0,0.0497]
[1744090266017,0.012549,79684.0,79683.0,0.1293887]
[1744090266231,0.263543,79683.0,79675.0,0.35255]
[1744090266445,0.263543,79683.0,79677.0,0.34]
[1744090266679,0.263552,79681.0,79678.0,0.1293887]
[1744090266879,0.26356,79678.0,79677.0,0.34]
[1744090267145,0.01255,79680.0,79677.0,0.34]
[1744090267635,0.26355,79681.0,79675.0,0.35255]
[1744090267875,0.263557,79679.0,79675.0,0.34]
[1744090268108,0.012551,79674.0,79669.0,0.34]
[1744090268341,0.01255,79679.0,79677.0,0.002]
[1744090268574,0.251004,79680.0,79677.0,0.002]
[1744090268808,0.251004,79680.0,79672.0,0.012551]
[1744090269049,0.263554,79680.0,79675.0,0.01255]
[1744090269273,0.01255,79679.0,79674.0,0.34]
[1744090269494,0.01255,79678.0,79674.0,0.4693887]
[1744090269738,0.01255,79679.0,79674.0,0.4819397]
[1744090270376,0.250997,79683.0,79675.0,0.01255]
[1744090270597,0.263551,79681.0,79676.0,0.251016]
[1744090270808,0.01355,79680.0,79674.0,0.7329597]
[1744090271245,0.01255,79680.0,79674.0,0.7329597]
[1744090271466,0.01255,79680.0,79676.0,0.251016]
[1744090272298,0.263529,79688.0,79681.0,0.263548]
[1744090272512,0.14692,79689.0,79681.0,0.263548]
[1744090272513,0.14692,79689.0,79688.0,0.012548]
[1744090272745,0.01300952,79696.0,79689.0,0.250975]
[1744090272959,0.01300952,79696.0,79688.0,0.012548]
[1744090272960,0.00046252,79696.0,79695.0,0.250956]
[1744090273175,0.00046252,79696.0,79695.0,0.3803447]
[1744090273393,0.25141552,79696.0,79695.0,0.1293887]
[1744090273656,0.01300952,79696.0,79695.0,0.1293887]
[1744090273872,0.00046252,79696.0,79692.0,0.34]
[1744090274086,0.00046252,79696.0,79694.0,0.34]
[1744090274515,0.00046252,79696.0,79695.0,0.3803447]
[1744090274729,0.00046252,79696.0,79695.0,0.7328917]
[1744090274937,0.00046252,79696.0,79695.0,0.7348917]
[1744090275151,0.00046252,79696.0,79695.0,0.74943255]
[1744090275363,0.00046252,79696.0,79695.0,0.74843255]
[1744090275794,0.00046252,79696.0,79695.0,0.75643255]
[1744090276920,0.00046252,79696.0,79695.0,0.75343255]
[1744090277341,0.00046252,79696.0,79695.0,0.7438917]
[1744090278330,0.00046252,79696.0,79695.0,0.75843255]
[1744090281082,0.00046252,79696.0,79695.0,0.7438917]
[1744090282516,0.00046252,79696.0,79695.0,0.75843255]
[1744090284220,5.2e-07,79700.0,79699.0,0.61803185]
[1744090284435,5.2e-07,79700.0,79699.0,0.74742055]
[1744090284693,3.6e-07,79706.0,79705.0,0.263471]
[1744090284920,3.6e-07,79706.0,79705.0,0.74740055]
[1744090285843,5.6e-07,79712.0,79711.0,0.352545]
[1744090286053,5.6e-07,79712.0,79711.0,0.91087455]
[1744090286260,5.6e-07,79712.0,79711.0,0.96037455]
[1744090287140,5.6e-07,79712.0,79711.0,0.9458337]
[1744090287390,5.6e-07,79712.0,79711.0,0.97883844]
[1744090287610,5.6e-07,79712.0,79711.0,0.98783844]
[1744090288088,5.6e-07,79712.0,79711.0,0.97883844]
[1744090288761,5.6e-07,79712.0,79711.0,0.96983844]
[1744090289006,5.6e-07,79712.0,79711.0,0.96429759]
[1744090289226,5.6e-07,79712.0,79711.0,0.95529759]
[1744090289644,5.6e-07,79712.0,79711.0,0.97329759]
[1744090289782,5.6e-07,79712.0,79711.0,0.97883844]
[1744090289995,5.6e-07,79712.0,79711.0,0.96983844]
[1744090290203,5.6e-07,79712.0,79711.0,0.97883844]
[1744090290877,5.6e-07,79712.0,79711.0,0.96983844]
[1744090291087,5.6e-07,79712.0,79711.0,0.97883844]
[1744090291912,5.6e-07,79712.0,79711.0,0.98783844]
[1744090292159,5.6e-07,79712.0,79711.0,0.97883844]
[1744090292365,5.6e-07,79712.0,79711.0,0.98783844]
[1744090292586,5.6e-07,79712.0,79711.0,0.97883844]
[1744090292800,5.6e-07,79712.0,79711.0,0.98783844]
[1744090294800,5.6e-07,79712.0,79711.0,0.92379759]
[1744090295047,5.6e-07,79712.0,79711.0,0.93833844]
[1744090302329,0.263398,79727.0,79711.0,1.17470059]
[1744090302330,0.250884,79718.0,79711.0,1.17470059]
[1744090302556,0.09713999,79720.0,79712.0,0.3928357]
[1744090302557,0.263425,79719.0,79712.0,0.3928357]
[1744090302781,0.012544,79715.0,79712.0,0.1293887]
[1744090303002,0.263439,79715.0,79712.0,0.1293887]
[1744090303234,0.263439,79715.0,79711.0,0.44186389]
[1744090303235,0.2509,79713.0,79711.0,0.009]
[1744090303464,0.012545,79712.0,79711.0,0.018]
[1744090303686,0.012545,79712.0,79711.0,0.009]
[1744090303907,0.263451,79711.0,79705.0,0.34]
[1744090304125,0.25089,79716.0,79705.0,0.352546]
[1744090304376,0.012544,79715.0,79709.0,0.263454]
[1744090304574,0.26344,79715.0,79709.0,0.263454]
[1744090304798,0.250885,79718.0,79712.0,0.012545]
[1744090305006,0.25089,79717.0,79711.0,0.272449]
[1744090305216,0.25089,79717.0,79712.0,0.009]
[1744090305433,0.250881,79719.0,79714.0,0.012544]
[1744090305683,0.263425,79719.0,79714.0,0.012544]
[1744090305910,0.263425,79719.0,79713.0,0.263445]
[1744090306541,0.02012636,79722.0,79720.0,0.26342]
[1744090306760,0.02012636,79722.0,79721.0,0.1419317]
[1744090307234,0.02012636,79722.0,79721.0,0.4819317]
[1744090309209,0.02012636,79722.0,79721.0,0.4849317]
[1744090311569,0.02002365,79722.0,79721.0,0.4849317]
[1744090319210,0.02002365,79722.0,79721.0,0.003]
[1744090322212,0.02002365,79722.0,79721.0,0.1449317]
[1744090322646,0.02002365,79722.0,79721.0,0.4849317]
[1744090323076,6.5e-07,79722.0,79721.0,0.49947255]
[1744090323277,8.5e-07,79728.0,79727.0,0.603398]
[1744090323492,8.5e-07,79728.0,79727.0,1.1471867]
[1744090323706,8.5e-07,79728.0,79727.0,1.16172755]
[1744090324047,8.5e-07,79728.0,79727.0,1.1471867]
[1744090324864,8.5e-07,79728.0,79727.0,1.1561867]
[1744090325290,8.5e-07,79728.0,79727.0,1.1471867]
[1744090325498,8.5e-07,79728.0,79727.0,1.17072755]
[1744090325708,8.5e-07,79728.0,79727.0,1.21942755]
[1744090326344,8.5e-07,79728.0,79727.0,1.21982002]
[1744090326546,8.5e-07,79728.0,79727.0,1.27832002]
[1744090327167,8.5e-07,79728.0,79727.0,1.28732002]
[1744090327692,8.5e-07,79728.0,79727.0,1.27832002]
[1744090327891,2.5e-07,79738.0,79737.0,0.66660585]
[1744090328100,2.5e-07,79738.0,79737.0,0.79599455]
[1744090328526,2.5e-07,79738.0,79737.0,0.7327537]
[1744090329410,2.5e-07,79738.0,79737.0,0.74729455]
[1744090329627,2.5e-07,79738.0,79737.0,0.75629455]
[1744090329829,2.5e-07,79738.0,79737.0,0.74729455]
[1744090330033,2.5e-07,79738.0,79737.0,0.7327537]
[1744090330459,2.5e-07,79738.0,79737.0,0.7417537]
[1744090330900,2.5e-07,79738.0,79737.0,0.7327537]
[1744090331376,2.5e-07,79738.0,79737.0,0.7507537]
[1744090331627,2.5e-07,79738.0,79737.0,0.75629455]
[1744090332245,2.5e-07,79738.0,79737.0,0.76529455]
[1744090332724,2.5e-07,79738.0,79737.0,0.75629455]
[1744090332939,2.5e-07,79738.0,79737.0,0.76529455]
[1744090333626,2.5e-07,79738.0,79737.0,0.75629455]
[1744090333868,2.5e-07,79738.0,79737.0,0.7507537]
[1744090334325,2.5e-07,79738.0,79737.0,0.7327537]
[1744090334562,2.5e-07,79738.0,79737.0,0.7417537]
[1744090334771,2.5e-07,79738.0,79737.0,0.7507537]
[1744090335480,2.5e-07,79738.0,79737.0,0.76529455]
[1744090344442,2.5e-07,79738.0,79737.0,0.7507537]
[1744090345319,2.5e-07,79738.0,79737.0,0.4873887]
[1744090345759,0.26336225,79738.0,79737.0,0.018]
[1744090346403,0.30886225,79738.0,79737.0,0.018]
[1744090346627,0.30886225,79738.0,79737.0,0.009]
[1744090346844,0.263417,79722.0,79715.0,0.012544]
[1744090347057,0.012543,79721.0,79712.0,0.012545]
[1744090347261,0.012543,79721.0,79714.0,0.250896]
[1744090347469,0.012543,79721.0,79715.0,0.012544]
[1744090347876,0.012543,79721.0,79714.0,0.26344]
[1744090348268,0.01275993,79721.0,79720.0,0.1247773]
[1744090348487,0.250828,79736.0,79720.0,0.1247773]
[1744090348488,0.4595,79741.0,79732.0,0.012542]
[1744090348699,0.00400025,79738.0,79734.0,0.012541]
[1744090349139,2.5e-07,79738.0,79732.0,0.263379]
[1744090349364,0.25082225,79738.0,79732.0,0.263379]
[1744090349596,0.012542,79730.0,79725.0,0.34]
[1744090349820,0.263397,79728.0,79725.0,0.1293887]
[1744090350036,0.012542,79727.0,79725.0,0.1293887]
[1744090350765,0.012544,79719.0,79718.0,0.34]
[1744090351027,0.012544,79719.0,79718.0,0.4693887]
[1744090351266,0.250922,79706.0,79699.0,0.012547]
[1744090351500,0.263461,79708.0,79703.0,0.1293887]
[1744090351752,0.250926,79705.0,79703.0,0.1293887]
[1744090352024,0.012546,79704.0,79702.0,0.00012636]
[1744090352274,0.012545,79707.0,79702.0,0.00012636]
[1744090352275,0.263472,79707.0,79702.0,0.00012636]
[1744090352518,0.263472,79707.0,79702.0,0.00912636]
[1744090352768,0.012546,79706.0,79702.0,0.00012636]
[1744090353203,0.012546,79706.0,79703.0,0.001]
[1744090353430,0.001,79707.0,79703.0,0.34]
[1744090353648,0.001,79707.0,79703.0,0.352546]
[1744090353868,0.263461,79708.0,79703.0,0.34]
[1744090354350,0.012543,79725.0,79704.0,0.3803167]
[1744090354579,0.250896,79714.0,79704.0,0.1293887]
[1744090354796,0.2509,79713.0,79705.0,0.250925]
[1744090355021,0.263414,79723.0,79713.0,0.012545]
[1744090355241,0.250874,79721.0,79715.0,0.012544]
[1744090355463,0.263414,79723.0,79716.0,0.263434]
[1744090355684,0.012543,79722.0,79716.0,0.25089]
[1744090355909,0.012543,79723.0,79718.0,0.250884]
[1744090356131,0.18059527,79730.0,79716.0,0.25089]
[1744090356132,0.012542,79729.0,79719.0,0.3928137]
[1744090356355,0.012542,79727.0,79719.0,0.1293887]
[1744090356580,0.250867,79724.0,79719.0,0.1293887]
[1744090356996,0.012543,79724.0,79719.0,0.1419327]
[1744090357216,0.005,79723.0,79719.0,0.1419327]
[1744090357673,0.012543,79724.0,79719.0,0.1419327]
[1744090357911,0.002,79723.0,79719.0,0.1419327]
[1744090358129,0.017543,79724.0,79719.0,0.1419327]
[1744090358371,0.017543,79724.0,79718.0,0.250884]
[1744090358372,0.012543,79721.0,79712.0,0.263446]
[1744090358588,0.250878,79720.0,79713.0,0.7328307]
[1744090358809,0.263421,79720.0,79714.0,0.012544]
[1744090359031,0.263421,79720.0,79715.0,0.34]
[1744090359477,0.263421,79720.0,79715.0,0.590893]
[1744090359731,0.263428,79719.0,79715.0,0.34]
[1744090361094,0.263421,79720.0,79715.0,0.603437]
[1744090361301,0.003,79719.0,79717.0,0.250886]
[1744090361527,0.003,79719.0,79716.0,0.012544]
[1744090361748,0.005,79719.0,79716.0,0.012544]
[1744090361985,0.003,79719.0,79715.0,0.603436]
[1744090362432,0.012543,79721.0,79716.0,0.012544]
[1744090362856,0.006,79720.0,79716.0,0.012544]
[1744090363348,0.002,79720.0,79717.0,0.250887]
[1744090363598,0.002,79720.0,79719.0,0.263425]
[1744090363831,0.002,79720.0,79719.0,0.250881]
[1744090364056,0.002,79720.0,79719.0,0.263425]
[1744090364494,0.002,79720.0,79719.0,0.012544]
[1744090364707,0.004,79721.0,79720.0,0.263421]
[1744090365368,0.004,79721.0,79720.0,0.3928097]
[1744090365579,0.01241711,79730.0,79720.0,0.3928097]
[1744090365580,0.01241711,79730.0,79727.0,0.250853]
[1744090365795,0.250856,79727.0,79722.0,0.250868]
[1744090366016,0.263398,79727.0,79723.0,0.1293887]
[1744090366227,0.012542,79730.0,79723.0,0.012543]
[1744090366457,0.02310387,79731.0,79729.0,0.012542]
[1744090366674,0.02310387,79731.0,79730.0,0.012542]
[1744090367101,0.25082325,79738.0,79734.0,0.250831]
[1744090367309,0.25082325,79738.0,79733.0,0.012541]
[1744090367604,0.012541,79735.0,79731.0,0.1293887]
[1744090368024,0.02507528,79735.0,79731.0,0.1293887]
[1744090368706,0.02507528,79735.0,79733.0,0.001]
[1744090368922,0.27590828,79735.0,79731.0,0.1293887]
[1744090369331,0.27790828,79735.0,79734.0,0.001]
[1744090369556,0.27590828,79735.0,79734.0,0.001]
[1744090369772,0.263378,79734.0,79731.0,0.1293887]
[1744090369998,0.012541,79733.0,79731.0,0.1293887]
[1744090370217,0.263382,79732.0,79731.0,0.001]
[1744090370678,0.263382,79732.0,79713.0,0.250898]
[1744090370679,0.263417,79722.0,79716.0,0.4144]
[1744090370893,0.26342,79721.0,79717.0,0.1293887]
[1744090371367,0.03566892,79720.0,79717.0,0.1293887]
[1744090371587,0.03566892,79720.0,79693.0,0.01236285]
[1744090371588,0.012544,79715.0,79712.0,0.34]
[1744090371818,0.012544,79715.0,79714.0,0.34012636]
[1744090372041,0.012544,79715.0,79714.0,0.46951506]
[1744090372705,0.264437,79715.0,79714.0,0.46951506]
[1744090373127,0.27600851,79715.0,79714.0,0.46951506]
[1744090373341,0.29813443,79715.0,79714.0,0.00012636]
[1744090373551,0.29913443,79715.0,79714.0,0.00012636]
[1744090379847,0.38751757,79715.0,79714.0,0.00012636]
[1744090380261,0.53423757,79715.0,79714.0,0.00012636]
[1744090380468,0.58003757,79715.0,79714.0,0.00012636]
[1744090381122,0.58203757,79715.0,79714.0,0.00012636]
[1744090381322,0.58003757,79715.0,79714.0,0.00012636]